[Event "Mitropa Online Cup Women 2021"]
[Site "Hybrid"]
[Date "2021.05.04"]
[Round "1.1"]
[White "Klek, Hanna Marie"]
[Black "Mueller-Seps, Monika"]
[Result "0-1"]
[ECO "B33"]
[WhiteElo "2302"]
[BlackElo "2243"]
[Annotator "NA"]
[PlyCount "64"]
[EventDate "2021.05.04"]
[EventType "team-tourn"]
[EventCountry "NET"]
[SourceTitle "playchess.com"]
[Source "ChessBase"]
[SourceQuality "1"]
[WhiteTeam "Germany"]
[BlackTeam "Switzerland"]
[WhiteTeamCountry "GER"]
[BlackTeamCountry "SUI"]
[TimeControl "40/5400+30:1800+30"]

1. e4 {[%emt 0:00:00]} c5 {[%emt 0:00:41]} 2. Nf3 {[%emt 0:00:07]} Nc6 {[%emt 0:00:12]} 3. d4 {[%emt 0:00:09]} cxd4 {[%emt 0:00:15]} 4. Nxd4 {[%emt 0:00:04]} e5 {[%emt 0:00:09]} 5. Nb5 {[%emt 0:00:12]} d6 {[%emt 0:00:14]} 6. N1c3 {[%emt 0:00:14]} a6 {[%emt 0:00:12]} 7. Na3 {[%emt 0:00:08]} b5 {[%emt 0:00:09]} 8. Nd5 {[%emt 0:00:21]} Nge7 {[%emt 0:00:15]} 9. c4 {[%emt 0:00:16]} Nd4 {[%emt 0:00:33]} 10. Be3 {[%emt 0:03:57]} Nxd5 {[%emt 0:00:38]} 11. exd5 {[%emt 0:02:55]} Nf5 {[%emt 0:02:39]} 12. Bd2 {[%emt 0:02:00]} g6 {[%emt 0:07:21]} 13. cxb5 {[%emt 0:04:50]} Bg7 {[%emt 0:04:12]} 14. Bc3 {[%emt 0:13:00]} O-O {[%emt 0:12:54]} 15. b6 {[%emt 0:21:01]} Bb7 {[%emt 0:17:49]} 16. Bc4 {[%emt 0:21:13]} Qg5 {[%emt 0:09:01]} 17. g3 {[%emt 0:01:50]} h5 {[%emt 0:05:50]} 18. h4 {[%emt 0:08:06]} Qd8 {[%emt 0:00:57]} 19. Qb3 {[%emt 0:00:25]} Bh6 {[%emt 0:03:05]} 20. Nc2 {[%emt 0:05:40]} Rc8 {[%emt 0:03:49]} 21. Rd1 {[%emt 0:05:36]} Re8 {[%emt 0:09:52]} 22. Be2 {[%emt 0:05:22]} e4 {[%emt 0:08:15]} 23. Nd4 {[%emt 0:00:29]} Qd7 {[%emt 0:01:13]} 24. O-O {[%emt 0:01:21]} Rc5 {[%emt 0:04:39]} 25. Nc6 {[%emt 0:01:33]} e3 {[%emt 0:02:16]} 26. Bf3 {[%emt 0:01:28]} e2 {[%emt 0:00:23]} 27. Bxe2 {[%emt 0:00:25]} Rxe2 {[%emt 0:00:07]} 28. Rfe1 {[%emt 0:00:23]} Rxe1+ {[%emt 0:01:20]} 29. Rxe1 {[%emt 0:00:04]} Rxc6 {[%emt 0:00:09]} 30. dxc6 {[%emt 0:00:12]} Qxc6 {[%emt 0:00:02]} 31. f3 {[%emt 0:00:58]} Qxf3 {[%emt 0:01:23]} 32. Re8+ {[%emt 0:00:11]} Bf8 {[%emt 0:00:02]} 0-1

[Event "Mitropa Online Cup Women 2021"]
[Site "Hybrid"]
[Date "2021.05.04"]
[Round "1.1"]
[White "Sieber, Fiona"]
[Black "Thode, Gilda"]
[Result "1-0"]
[ECO "C10"]
[WhiteElo "2275"]
[BlackElo "1987"]
[Annotator "NA"]
[PlyCount "71"]
[EventDate "2021.05.04"]
[EventType "team-tourn"]
[EventCountry "NET"]
[SourceTitle "playchess.com"]
[Source "ChessBase"]
[SourceQuality "1"]
[WhiteTeam "Germany"]
[BlackTeam "Switzerland"]
[WhiteTeamCountry "GER"]
[BlackTeamCountry "SUI"]
[TimeControl "40/5400+30:1800+30"]

1. e4 {[%emt 0:00:00]} e6 {[%emt 0:00:48]} 2. d4 {[%emt 0:00:08]} d5 {[%emt 0:00:36]} 3. Nc3 {[%emt 0:00:12]} Nc6 {[%emt 0:00:18]} 4. Nf3 {[%emt 0:00:19]} Nf6 {[%emt 0:00:17]} 5. e5 {[%emt 0:00:17]} Ne4 {[%emt 0:00:18]} 6. Ne2 {[%emt 0:00:12]} Be7 {[%emt 0:03:12]} 7. Ng3 {[%emt 0:00:21]} f5 {[%emt 0:09:26]} 8. exf6 {[%emt 0:02:22]} Nxf6 {[%emt 0:00:58]} 9. Bd3 {[%emt 0:02:39]} O-O {[%emt 0:08:02]} 10. O-O {[%emt 0:00:57]} Nb4 {[%emt 0:08:45]} 11. Be2 {[%emt 0:00:41]} c5 {[%emt 0:03:26]} 12. a3 {[%emt 0:00:41]} Nc6 {[%emt 0:00:57]} 13. dxc5 {[%emt 0:00:36]} Bxc5 {[%emt 0:01:13]} 14. b4 {[%emt 0:01:14]} Bd6 {[%emt 0:06:47]} 15. Bb2 {[%emt 0:02:37]} Qc7 {[%emt 0:16:34]} 16. c4 {[%emt 0:06:00]} dxc4 {[%emt 0:13:42]} 17. Bxc4 {[%emt 0:03:42]} Bxg3 {[%emt 0:01:35]} 18. hxg3 {[%emt 0:07:52]} Nxb4 {[%emt 0:01:39]} 19. Rc1 {[%emt 0:11:26]} Nc6 {[%emt 0:01:13]} 20. Ng5 {[%emt 0:03:06]} Qa5 {[%emt 0:16:49]} 21. Bxe6+ {[%emt 0:06:52]} Bxe6 {[%emt 0:00:13]} 22. Nxe6 {[%emt 0:00:08]} Rf7 {[%emt 0:00:58]} 23. Rc5 {[%emt 0:18:21]} Qb6 {[%emt 0:00:24]} 24. Qc2 {[%emt 0:02:16]} Re8 {[%emt 0:03:06]} 25. Ng5 {[%emt 0:03:22]} Rfe7 {[%emt 0:00:07]} 26. Qc4+ {[%emt 0:09:40]} Kh8 {[%emt 0:00:59]} 27. Bxf6 {[%emt 0:02:11]} gxf6 {[%emt 0:00:24]} 28. Nf7+ {[%emt 0:00:19]} Kg7 {[%emt 0:00:20]} 29. Nd6 {[%emt 0:00:14]} Ne5 {[%emt 0:00:49]} 30. Nxe8+ {[%emt 0:00:33]} Rxe8 {[%emt 0:00:12]} 31. Rc7+ {[%emt 0:00:35]} Kg6 {[%emt 0:00:49]} 32. Qc2+ {[%emt 0:00:58]} f5 {[%emt 0:00:10]} 33. Rb1 {[%emt 0:00:45]} Qa5 {[%emt 0:00:49]} 34. Rcxb7 {[%emt 0:05:05]} Qxa3 {[%emt 0:00:28]} 35. Qc7 {[%emt 0:00:46]} Qf8 {[%emt 0:00:32]} 36. Qxh7+ {[%emt 0:00:12]} 1-0

[Event "Mitropa Online Cup Women 2021"]
[Site "Hybrid"]
[Date "2021.05.04"]
[Round "1.1"]
[White "Hakimifard, Ghazal"]
[Black "Schneider, Jana"]
[Result "0-1"]
[ECO "C09"]
[WhiteElo "2265"]
[BlackElo "2272"]
[Annotator "NA"]
[PlyCount "78"]
[EventDate "2021.05.04"]
[EventType "team-tourn"]
[EventCountry "NET"]
[SourceTitle "playchess.com"]
[Source "ChessBase"]
[SourceQuality "1"]
[WhiteTeam "Switzerland"]
[BlackTeam "Germany"]
[WhiteTeamCountry "SUI"]
[BlackTeamCountry "GER"]
[TimeControl "40/5400+30:1800+30"]

1. e4 {[%emt 0:00:00]} e6 {[%emt 0:00:15]} 2. d4 {[%emt 0:00:07]} d5 {[%emt 0:00:11]} 3. Nd2 {[%emt 0:00:06]} c5 {[%emt 0:00:11]} 4. exd5 {[%emt 0:00:10]} exd5 {[%emt 0:00:18]} 5. Ngf3 {[%emt 0:00:13]} Nc6 {[%emt 0:00:15]} 6. Bb5 {[%emt 0:00:17]} Qe7+ {[%emt 0:00:14]} 7. Be2 {[%emt 0:04:31]} Qc7 {[%emt 0:00:25]} 8. O-O {[%emt 0:00:54]} Nf6 {[%emt 0:00:27]} 9. Re1 {[%emt 0:00:46]} cxd4 {[%emt 0:00:33]} 10. Nb3 {[%emt 0:11:12]} Bb4 {[%emt 0:01:02]} 11. Bd2 {[%emt 0:00:58]} Bxd2 {[%emt 0:00:12]} 12. Qxd2 {[%emt 0:01:06]} O-O {[%emt 0:00:31]} 13. Nfxd4 {[%emt 0:04:59]} Bd7 {[%emt 0:00:57]} 14. Bf3 {[%emt 0:06:40]} Ne5 {[%emt 0:26:04]} 15. Qf4 {[%emt 0:13:58]} Rfe8 {[%emt 0:04:31]} 16. Re3 {[%emt 0:05:32]} Rac8 {[%emt 0:09:02]} 17. Rae1 {[%emt 0:05:44]} Nc4 {[%emt 0:02:02]} 18. Rxe8+ {[%emt 0:04:48]} Bxe8 {[%emt 0:04:49]} 19. Qc1 {[%emt 0:16:59]} Bd7 {[%emt 0:04:11]} 20. c3 {[%emt 0:00:06]} Qb6 {[%emt 0:08:04]} 21. Re2 {[%emt 0:06:12]} a5 {[%emt 0:04:54]} 22. Qc2 {[%emt 0:01:31]} a4 {[%emt 0:04:40]} 23. Nc1 {[%emt 0:00:04]} a3 {[%emt 0:00:33]} 24. b3 {[%emt 0:00:02]} Nd6 {[%emt 0:01:12]} 25. Qd3 {[%emt 0:03:32]} Nb5 {[%emt 0:01:52]} 26. Nf5 {[%emt 0:07:17]} Rxc3 {[%emt 0:01:47]} 27. Ne7+ {[%emt 0:00:04]} Kf8 {[%emt 0:00:30]} 28. Qd1 {[%emt 0:00:17]} Qc5 {[%emt 0:01:03]} 29. Re1 {[%emt 0:01:01]} Rxc1 {[%emt 0:00:34]} 30. Qxc1 {[%emt 0:00:01]} Qxc1 {[%emt 0:00:10]} 31. Rxc1 {[%emt 0:00:02]} Kxe7 {[%emt 0:00:11]} 32. Be2 {[%emt 0:01:26]} Nd4 {[%emt 0:02:20]} 33. Bd3 {[%emt 0:00:20]} Kd6 {[%emt 0:00:18]} 34. f3 {[%emt 0:00:09]} Bf5 {[%emt 0:01:28]} 35. Rd1 {[%emt 0:00:08]} Bxd3 {[%emt 0:00:48]} 36. Rxd3 {[%emt 0:00:02]} Nb5 {[%emt 0:00:50]} 37. Kf2 {[%emt 0:01:11]} d4 {[%emt 0:00:19]} 38. Rd2 {[%emt 0:00:11]} Kc5 {[%emt 0:01:05]} 39. Ke2 {[%emt 0:00:14]} Nd5 {[%emt 0:00:48]} 0-1

[Event "Mitropa Online Cup Women 2021"]
[Site "Hybrid"]
[Date "2021.05.04"]
[Round "1.1"]
[White "Heinatz, Gundula"]
[Black "Muetsch, Annmarie"]
[Result "0-1"]
[ECO "A45"]
[WhiteElo "2131"]
[BlackElo "2266"]
[Annotator "NA"]
[PlyCount "96"]
[EventDate "2021.05.04"]
[EventType "team-tourn"]
[EventCountry "NET"]
[SourceTitle "playchess.com"]
[Source "ChessBase"]
[SourceQuality "1"]
[WhiteTeam "Switzerland"]
[BlackTeam "Germany"]
[WhiteTeamCountry "SUI"]
[BlackTeamCountry "GER"]
[TimeControl "40/5400+30:1800+30"]

1. d4 {[%emt 0:00:00]} Nf6 {[%emt 0:00:23]} 2. Bf4 {[%emt 0:00:13]} d6 {[%emt 0:00:49]} 3. Nc3 {[%emt 0:00:31]} Nbd7 {[%emt 0:02:39]} 4. Nf3 {[%emt 0:00:25]} c5 {[%emt 0:01:49]} 5. e3 {[%emt 0:09:49]} g6 {[%emt 0:07:54]} 6. Qd2 {[%emt 0:05:38]} Bg7 {[%emt 0:01:54]} 7. h4 {[%emt 0:03:49]} a6 {[%emt 0:03:37]} 8. a4 {[%emt 0:00:56]} Qa5 {[%emt 0:03:38]} 9. Rd1 {[%emt 0:15:18]} Nb6 {[%emt 0:06:18]} 10. Be2 {[%emt 0:22:17]} Bd7 {[%emt 0:02:58]} 11. b3 {[%emt 0:08:05]} Rc8 {[%emt 0:04:29]} 12. d5 {[%emt 0:06:03]} c4 {[%emt 0:02:48]} 13. b4 {[%emt 0:09:43]} Qxb4 {[%emt 0:00:15]} 14. Rb1 {[%emt 0:04:41]} Qa5 {[%emt 0:08:31]} 15. O-O {[%emt 0:05:38]} Nbxd5 {[%emt 0:03:21]} 16. Nxd5 {[%emt 0:00:21]} Qxd5 {[%emt 0:00:10]} 17. Qb4 {[%emt 0:00:57]} b5 {[%emt 0:02:48]} 18. axb5 {[%emt 0:00:35]} axb5 {[%emt 0:00:09]} 19. Ng5 {[%emt 0:01:23]} h6 {[%emt 0:04:44]} 20. Nf3 {[%emt 0:00:19]} Ne4 {[%emt 0:01:19]} 21. Rfd1 {[%emt 0:01:22]} Qc5 {[%emt 0:00:38]} 22. Qxc5 {[%emt 0:00:42]} Rxc5 {[%emt 0:00:16]} 23. Re1 {[%emt 0:00:38]} Nc3 {[%emt 0:01:34]} 24. Rbc1 {[%emt 0:00:07]} Nxe2+ {[%emt 0:00:22]} 25. Rxe2 {[%emt 0:00:02]} e5 {[%emt 0:06:17]} 26. Bg3 {[%emt 0:00:06]} Bg4 {[%emt 0:01:17]} 27. Rd2 {[%emt 0:00:26]} Bxf3 {[%emt 0:00:18]} 28. gxf3 {[%emt 0:00:03]} Ke7 {[%emt 0:00:23]} 29. e4 {[%emt 0:00:22]} Rd8 {[%emt 0:01:42]} 30. f4 {[%emt 0:00:09]} Ke6 {[%emt 0:09:36]} 31. Rcd1 {[%emt 0:01:04]} b4 {[%emt 0:01:27]} 32. f3 {[%emt 0:00:57]} f5 {[%emt 0:02:43]} 33. exf5+ {[%emt 0:01:59]} gxf5 {[%emt 0:00:31]} 34. Rg2 {[%emt 0:00:26]} Bf6 {[%emt 0:01:37]} 35. Be1 {[%emt 0:00:20]} c3 {[%emt 0:01:50]} 36. Rg6 {[%emt 0:00:20]} Rb8 {[%emt 0:04:38]} 37. h5 {[%emt 0:00:23]} b3 {[%emt 0:02:17]} 38. Bh4 {[%emt 0:01:23]} Rf8 {[%emt 0:00:27]} 39. cxb3 {[%emt 0:00:26]} c2 {[%emt 0:00:25]} 40. Rc1 {[%emt 0:00:00]} e4 {[%emt 0:00:00]} 41. b4 {[%emt 0:17:50]} Rc3 {[%emt 0:13:58]} 42. Be1 {[%emt 0:07:23]} Rc4 {[%emt 0:01:23]} 43. Bh4 {[%emt 0:01:39]} d5 {[%emt 0:01:11]} 44. b5 {[%emt 0:01:06]} d4 {[%emt 0:01:03]} 45. b6 {[%emt 0:00:15]} d3 {[%emt 0:00:40]} 46. b7 {[%emt 0:00:40]} Rb4 {[%emt 0:01:43]} 47. Be1 {[%emt 0:01:23]} Rxb7 {[%emt 0:00:23]} 48. Ra1 {[%emt 0:02:15]} Rb1 {[%emt 0:01:54]} 0-1

[Event "Mitropa Online Cup Women 2021"]
[Site "Hybrid"]
[Date "2021.05.04"]
[Round "1.2"]
[White "Petrova, Kristyna"]
[Black "Medic, Mirjana"]
[Result "1-0"]
[ECO "A11"]
[WhiteElo "2303"]
[BlackElo "2147"]
[Annotator "NA"]
[PlyCount "59"]
[EventDate "2021.05.04"]
[EventType "team-tourn"]
[EventCountry "NET"]
[SourceTitle "playchess.com"]
[Source "ChessBase"]
[SourceQuality "1"]
[WhiteTeam "Czech Republic"]
[BlackTeam "Croatia"]
[WhiteTeamCountry "CZE"]
[BlackTeamCountry "CRO"]
[TimeControl "40/5400+30:1800+30"]

1. Nf3 {[%emt 0:00:00]} d5 {[%emt 0:00:27]} 2. c4 {[%emt 0:00:12]} c6 {[%emt 0:00:38]} 3. e3 {[%emt 0:00:18]} e6 {[%emt 0:02:00]} 4. Nc3 {[%emt 0:00:22]} Nf6 {[%emt 0:01:28]} 5. b3 {[%emt 0:00:47]} Bd6 {[%emt 0:01:55]} 6. Bb2 {[%emt 0:00:34]} Nbd7 {[%emt 0:01:22]} 7. Qc2 {[%emt 0:00:36]} O-O {[%emt 0:02:26]} 8. Rg1 {[%emt 0:01:16]} dxc4 {[%emt 0:17:03]} 9. Bxc4 {[%emt 0:25:52]} Nb6 {[%emt 0:05:14]} 10. Bd3 {[%emt 0:05:09]} e5 {[%emt 0:05:35]} 11. h3 {[%emt 0:17:49]} Qe7 {[%emt 0:09:06]} 12. a3 {[%emt 0:14:36]} Re8 {[%emt 0:05:55]} 13. Ng5 {[%emt 0:02:32]} g6 {[%emt 0:05:35]} 14. Nge4 {[%emt 0:02:17]} Nxe4 {[%emt 0:00:22]} 15. Nxe4 {[%emt 0:00:07]} Bc7 {[%emt 0:00:13]} 16. g4 {[%emt 0:00:47]} Nd5 {[%emt 0:05:52]} 17. Rg3 {[%emt 0:11:06]} Rd8 {[%emt 0:04:04]} 18. O-O-O {[%emt 0:03:49]} Bd7 {[%emt 0:08:36]} 19. g5 {[%emt 0:01:59]} b6 {[%emt 0:00:42]} 20. h4 {[%emt 0:01:07]} Rac8 {[%emt 0:03:42]} 21. h5 {[%emt 0:00:05]} Be6 {[%emt 0:08:25]} 22. hxg6 {[%emt 0:00:23]} hxg6 {[%emt 0:00:27]} 23. Nf6+ {[%emt 0:02:52]} Kg7 {[%emt 0:00:44]} 24. f4 {[%emt 0:01:58]} Rh8 {[%emt 0:03:31]} 25. fxe5 {[%emt 0:00:27]} Bb8 {[%emt 0:00:51]} 26. Kb1 {[%emt 0:00:17]} b5 {[%emt 0:02:03]} 27. Rgg1 {[%emt 0:00:28]} a6 {[%emt 0:00:25]} 28. Rh1 {[%emt 0:00:11]} c5 {[%emt 0:00:31]} 29. Nxd5 {[%emt 0:00:27]} Bxd5 {[%emt 0:00:16]} 30. e6+ {[%emt 0:00:04]} 1-0

[Event "Mitropa Online Cup Women 2021"]
[Site "Hybrid"]
[Date "2021.05.04"]
[Round "1.2"]
[White "Cvitan, Ena"]
[Black "Olsarova, Karolina"]
[Result "0-1"]
[ECO "E11"]
[WhiteElo "2263"]
[BlackElo "2290"]
[Annotator "NA"]
[PlyCount "90"]
[EventDate "2021.05.04"]
[EventType "team-tourn"]
[EventCountry "NET"]
[SourceTitle "playchess.com"]
[Source "ChessBase"]
[SourceQuality "1"]
[WhiteTeam "Croatia"]
[BlackTeam "Czech Republic"]
[WhiteTeamCountry "CRO"]
[BlackTeamCountry "CZE"]
[TimeControl "40/5400+30:1800+30"]

1. d4 {[%emt 0:00:00]} Nf6 {[%emt 0:00:09]} 2. c4 {[%emt 0:00:30]} e6 {[%emt 0:00:10]} 3. Nf3 {[%emt 0:00:38]} Bb4+ {[%emt 0:00:23]} 4. Nbd2 {[%emt 0:00:50]} O-O {[%emt 0:05:46]} 5. a3 {[%emt 0:01:18]} Be7 {[%emt 0:01:42]} 6. e4 {[%emt 0:04:19]} d6 {[%emt 0:03:17]} 7. Bd3 {[%emt 0:23:54]} Nbd7 {[%emt 0:15:45]} 8. Bc2 {[%emt 0:19:19]} e5 {[%emt 0:02:50]} 9. d5 {[%emt 0:00:13]} a5 {[%emt 0:01:53]} 10. Rb1 {[%emt 0:02:11]} g6 {[%emt 0:12:25]} 11. O-O {[%emt 0:04:31]} Nh5 {[%emt 0:02:30]} 12. Re1 {[%emt 0:12:16]} Qe8 {[%emt 0:08:23]} 13. Nf1 {[%emt 0:01:13]} Nb6 {[%emt 0:05:22]} 14. Bh6 {[%emt 0:05:47]} Ng7 {[%emt 0:02:56]} 15. c5 {[%emt 0:01:04]} Nd7 {[%emt 0:02:48]} 16. Ba4 {[%emt 0:05:06]} Qd8 {[%emt 0:07:16]} 17. c6 {[%emt 0:00:53]} Nc5 {[%emt 0:06:29]} 18. cxb7 {[%emt 0:06:08]} Bxb7 {[%emt 0:00:30]} 19. Bc6 {[%emt 0:00:22]} Bxc6 {[%emt 0:03:48]} 20. dxc6 {[%emt 0:00:08]} a4 {[%emt 0:00:17]} 21. Qd5 {[%emt 0:06:09]} Ra6 {[%emt 0:03:06]} 22. Rec1 {[%emt 0:00:16]} Nb3 {[%emt 0:05:27]} 23. Rc4 {[%emt 0:01:30]} Re8 {[%emt 0:04:04]} 24. Ne3 {[%emt 0:01:14]} Ne6 {[%emt 0:00:18]} 25. Rd1 {[%emt 0:01:57]} Ned4 {[%emt 0:01:35]} 26. Nxd4 {[%emt 0:00:23]} exd4 {[%emt 0:00:20]} 27. Rxa4 {[%emt 0:00:22]} Rxa4 {[%emt 0:00:35]} 28. Qxb3 {[%emt 0:00:02]} Qa8 {[%emt 0:02:59]} 29. Nd5 {[%emt 0:00:24]} Bd8 {[%emt 0:00:08]} 30. Qf3 {[%emt 0:01:09]} Re6 {[%emt 0:00:20]} 31. Rc1 {[%emt 0:00:14]} Ra6 {[%emt 0:00:40]} 32. Nb4 {[%emt 0:00:08]} Ra5 {[%emt 0:00:22]} 33. Qd3 {[%emt 0:00:45]} g5 {[%emt 0:01:11]} 34. Qh3 {[%emt 0:00:25]} Rxe4 {[%emt 0:00:15]} 35. f4 {[%emt 0:01:00]} Re6 {[%emt 0:00:52]} 36. fxg5 {[%emt 0:00:19]} Bxg5 {[%emt 0:00:20]} 37. Bxg5 {[%emt 0:00:18]} Rxg5 {[%emt 0:00:04]} 38. Qd3 {[%emt 0:00:24]} Qe8 {[%emt 0:00:09]} 39. h4 {[%emt 0:00:08]} Re1+ {[%emt 0:00:14]} 40. Rxe1 {[%emt 0:00:00]} Qxe1+ {[%emt 0:00:00]} 41. Kh2 {[%emt 0:00:16]} Qxh4+ {[%emt 0:00:28]} 42. Qh3 {[%emt 0:01:36]} Qf4+ {[%emt 0:02:56]} 43. Kg1 {[%emt 0:04:17]} Qc1+ {[%emt 0:01:05]} 44. Kh2 {[%emt 0:00:14]} Qd1 {[%emt 0:05:45]} 45. Qc8+ {[%emt 0:00:41]} Kg7 {[%emt 0:00:07]} 0-1

[Event "Mitropa Online Cup Women 2021"]
[Site "Hybrid"]
[Date "2021.05.04"]
[Round "1.2"]
[White "Kanakova, Natalie"]
[Black "Spiranec, Noemi"]
[Result "0-1"]
[ECO "C54"]
[WhiteElo "2179"]
[BlackElo "2098"]
[Annotator "NA"]
[PlyCount "82"]
[EventDate "2021.05.04"]
[EventType "team-tourn"]
[EventCountry "NET"]
[SourceTitle "playchess.com"]
[Source "ChessBase"]
[SourceQuality "1"]
[WhiteTeam "Czech Republic"]
[BlackTeam "Croatia"]
[WhiteTeamCountry "CZE"]
[BlackTeamCountry "CRO"]
[TimeControl "40/5400+30:1800+30"]

1. e4 {[%emt 0:00:00]} e5 {[%emt 0:00:11]} 2. Nf3 {[%emt 0:00:11]} Nc6 {[%emt 0:00:08]} 3. Bc4 {[%emt 0:00:12]} Bc5 {[%emt 0:00:27]} 4. c3 {[%emt 0:00:44]} Nf6 {[%emt 0:00:38]} 5. d4 {[%emt 0:00:45]} exd4 {[%emt 0:01:31]} 6. b4 {[%emt 0:00:55]} Be7 {[%emt 0:10:05]} 7. e5 {[%emt 0:03:23]} Ne4 {[%emt 0:05:33]} 8. b5 {[%emt 0:04:22]} Na5 {[%emt 0:03:59]} 9. Bd5 {[%emt 0:03:59]} Nxc3 {[%emt 0:02:27]} 10. Nxc3 {[%emt 0:02:30]} dxc3 {[%emt 0:00:22]} 11. Nd4 {[%emt 0:10:44]} O-O {[%emt 0:06:27]} 12. Qg4 {[%emt 0:09:59]} d6 {[%emt 0:15:13]} 13. e6 {[%emt 0:03:50]} fxe6 {[%emt 0:08:44]} 14. Nxe6 {[%emt 0:14:09]} Bxe6 {[%emt 0:00:06]} 15. Bxe6+ {[%emt 0:00:55]} Kh8 {[%emt 0:00:31]} 16. O-O {[%emt 0:05:24]} Bf6 {[%emt 0:05:54]} 17. Be3 {[%emt 0:01:09]} d5 {[%emt 0:05:07]} 18. Qh5 {[%emt 0:06:07]} Qe8 {[%emt 0:05:33]} 19. Qxe8 {[%emt 0:04:58]} Rfxe8 {[%emt 0:00:05]} 20. Bxd5 {[%emt 0:00:47]} Rad8 {[%emt 0:00:04]} 21. Rad1 {[%emt 0:06:14]} Re5 {[%emt 0:03:53]} 22. Bf3 {[%emt 0:06:56]} Rxd1 {[%emt 0:01:32]} 23. Bxd1 {[%emt 0:00:46]} Rxb5 {[%emt 0:00:10]} 24. Bc1 {[%emt 0:01:06]} Kg8 {[%emt 0:05:39]} 25. Bc2 {[%emt 0:00:22]} Re5 {[%emt 0:03:03]} 26. Bd3 {[%emt 0:03:44]} c5 {[%emt 0:01:42]} 27. f3 {[%emt 0:01:41]} Nc6 {[%emt 0:02:45]} 28. Bf4 {[%emt 0:00:35]} Re8 {[%emt 0:01:04]} 29. Bc4+ {[%emt 0:01:43]} Kh8 {[%emt 0:00:06]} 30. Rc1 {[%emt 0:01:59]} a6 {[%emt 0:02:19]} 31. a4 {[%emt 0:00:39]} Nd4 {[%emt 0:01:11]} 32. Kf2 {[%emt 0:01:02]} b5 {[%emt 0:00:10]} 33. axb5 {[%emt 0:00:17]} axb5 {[%emt 0:00:02]} 34. Bf1 {[%emt 0:00:21]} b4 {[%emt 0:02:10]} 35. Bd3 {[%emt 0:01:43]} g5 {[%emt 0:04:03]} 36. Be3 {[%emt 0:01:08]} Nb3 {[%emt 0:01:21]} 37. Rb1 {[%emt 0:02:25]} Nd2 {[%emt 0:00:09]} 38. Rd1 {[%emt 0:00:28]} Bd4 {[%emt 0:01:05]} 39. Bxd4+ {[%emt 0:00:29]} cxd4 {[%emt 0:00:03]} 40. Bf5 {[%emt 0:00:00]} b3 {[%emt 0:00:00]} 41. Rc1 {[%emt 0:01:22]} b2 {[%emt 0:02:14]} 0-1

[Event "Mitropa Online Cup Women 2021"]
[Site "Hybrid"]
[Date "2021.05.04"]
[Round "1.2"]
[White "Vujnovic, Patricija"]
[Black "Worek, Joanna"]
[Result "0-1"]
[ECO "B23"]
[WhiteElo "2129"]
[BlackElo "2322"]
[Annotator "NA"]
[PlyCount "96"]
[EventDate "2021.05.04"]
[EventType "team-tourn"]
[EventCountry "NET"]
[SourceTitle "playchess.com"]
[Source "ChessBase"]
[SourceQuality "1"]
[WhiteTeam "Croatia"]
[BlackTeam "Czech Republic"]
[WhiteTeamCountry "CRO"]
[BlackTeamCountry "CZE"]
[TimeControl "40/5400+30:1800+30"]

1. e4 {[%emt 0:00:00]} c5 {[%emt 0:00:07]} 2. Nc3 {[%emt 0:00:08]} Nc6 {[%emt 0:00:12]} 3. Bb5 {[%emt 0:00:09]} Nd4 {[%emt 0:00:42]} 4. Nf3 {[%emt 0:00:11]} Nxb5 {[%emt 0:01:34]} 5. Nxb5 {[%emt 0:00:07]} d6 {[%emt 0:00:27]} 6. d4 {[%emt 0:01:03]} cxd4 {[%emt 0:00:27]} 7. Qxd4 {[%emt 0:04:47]} Bd7 {[%emt 0:17:44]} 8. Nc3 {[%emt 0:02:39]} e5 {[%emt 0:00:23]} 9. Qd3 {[%emt 0:01:48]} h6 {[%emt 0:00:19]} 10. Nd2 {[%emt 0:03:42]} Nf6 {[%emt 0:04:02]} 11. Nc4 {[%emt 0:04:24]} Be6 {[%emt 0:02:05]} 12. Ne3 {[%emt 0:01:02]} Rc8 {[%emt 0:00:34]} 13. O-O {[%emt 0:03:33]} Be7 {[%emt 0:01:43]} 14. Ncd5 {[%emt 0:15:44]} Nxd5 {[%emt 0:04:03]} 15. Nxd5 {[%emt 0:07:58]} Bxd5 {[%emt 0:03:35]} 16. Qxd5 {[%emt 0:01:40]} Rxc2 {[%emt 0:04:26]} 17. Qxb7 {[%emt 0:00:28]} Qd7 {[%emt 0:01:15]} 18. Qb3 {[%emt 0:02:28]} Rc7 {[%emt 0:02:44]} 19. Be3 {[%emt 0:01:26]} O-O {[%emt 0:00:28]} 20. Rac1 {[%emt 0:04:08]} Rb7 {[%emt 0:23:06]} 21. Qc2 {[%emt 0:11:05]} f5 {[%emt 0:05:53]} 22. f4 {[%emt 0:16:06]} fxe4 {[%emt 0:10:49]} 23. fxe5 {[%emt 0:01:24]} Rxf1+ {[%emt 0:02:42]} 24. Rxf1 {[%emt 0:00:22]} d5 {[%emt 0:00:40]} 25. Qf2 {[%emt 0:01:14]} Qe6 {[%emt 0:01:14]} 26. Bxa7 {[%emt 0:03:15]} Qxe5 {[%emt 0:01:45]} 27. Bd4 {[%emt 0:00:16]} Qe6 {[%emt 0:00:15]} 28. b3 {[%emt 0:09:04]} Rb4 {[%emt 0:07:57]} 29. Bc5 {[%emt 0:02:16]} Bxc5 {[%emt 0:00:16]} 30. Qxc5 {[%emt 0:00:03]} Qb6 {[%emt 0:00:02]} 31. Qxb6 {[%emt 0:00:18]} Rxb6 {[%emt 0:00:02]} 32. Rd1 {[%emt 0:00:36]} Rd6 {[%emt 0:00:05]} 33. Kf2 {[%emt 0:01:23]} d4 {[%emt 0:00:13]} 34. a4 {[%emt 0:00:16]} Kf7 {[%emt 0:01:04]} 35. b4 {[%emt 0:00:10]} Ke6 {[%emt 0:00:21]} 36. b5 {[%emt 0:00:25]} Kd5 {[%emt 0:00:21]} 37. a5 {[%emt 0:00:46]} e3+ {[%emt 0:00:03]} 38. Ke2 {[%emt 0:01:06]} Rf6 {[%emt 0:00:13]} 39. Kd3 {[%emt 0:00:49]} Rf2 {[%emt 0:00:06]} 40. a6 {[%emt 0:00:00]} Ra2 {[%emt 0:00:00]} 41. h3 {[%emt 0:03:23]} g5 {[%emt 0:12:31]} 42. g4 {[%emt 0:01:30]} Ra3+ {[%emt 0:01:25]} 43. Kc2 {[%emt 0:06:58]} Kc4 {[%emt 0:09:25]} 44. Rb1 {[%emt 0:02:19]} Ra2+ {[%emt 0:01:52]} 45. Rb2 {[%emt 0:00:24]} d3+ {[%emt 0:02:18]} 46. Kb1 {[%emt 0:00:57]} Ra5 {[%emt 0:00:43]} 47. b6 {[%emt 0:00:35]} e2 {[%emt 0:00:13]} 48. b7 {[%emt 0:00:13]} e1=Q# {[%emt 0:00:06]} 0-1